fUST/lending_fUST_20240823
["ID","MTS","AMOUNT","RATE_DAILY","PERIOD"]
[335602594,1724365842306,-562.715892,0.0001866,2]
[335602595,1724365842315,-562.715892,0.0001866,2]
[335602596,1724365842324,-203.098501,0.0001866,2]
[335602597,1724365842335,-203.098501,0.0001866,2]
[335602598,1724365842346,-415.611282,0.0001866,2]
[335602599,1724365842356,-203.098501,0.0001866,2]
[335602600,1724365842366,-415.611282,0.0001866,2]
[335602601,1724365842374,-203.098501,0.0001866,2]
[335602602,1724365842384,-415.611282,0.0001866,2]
[335602603,1724365842393,-415.611282,0.0001866,2]
[335602604,1724365842404,-203.098501,0.0001866,2]
[335602605,1724365842415,-203.098501,0.0001866,2]
[335602606,1724365842426,-203.098501,0.0001866,2]
[335602607,1724365842436,-203.098501,0.0001866,2]
[335602608,1724365842446,-1101.564104,0.0001866,2]
[335602609,1724365842455,-1101.564104,0.0001866,2]
[335602610,1724365842464,-1101.564104,0.0001866,2]
[335602611,1724365842479,-1101.564104,0.0001866,2]
[335602612,1724365842489,-1101.564104,0.0001866,2]
[335602613,1724365842498,-1101.564104,0.0001866,2]
[335602614,1724365842508,-1101.564104,0.0001866,2]
[335602615,1724365842518,-1101.564104,0.0001866,2]
[335602616,1724365842527,-367.759949,0.0001866,2]
[335602617,1724365842536,-367.759949,0.0001866,2]
[335602618,1724365842546,-367.759949,0.0001866,2]
[335602619,1724365842556,-367.759949,0.0001866,2]
[335602620,1724365842567,-259.027066,0.0001866,2]
[335602621,1724365842578,-259.027066,0.0001866,2]
[335602622,1724365842589,-259.027066,0.0001866,2]
[335602623,1724365842599,-259.027066,0.0001866,2]
[335602624,1724365842611,-367.759949,0.0001866,2]
[335602625,1724365842622,-367.759949,0.0001866,2]
[335602626,1724365842632,-367.759949,0.0001866,2]
[335602627,1724365842642,-367.759949,0.0001866,2]
[335602628,1724365842651,-259.027066,0.0001866,2]
[335602629,1724365842661,-259.027066,0.0001866,2]
[335602630,1724365842672,-259.027066,0.0001866,2]
[335602631,1724365842683,-259.027066,0.0001866,2]
[335602632,1724365842694,-151.0,0.0001866,2]
[335602633,1724365842703,-151.0,0.0001866,2]
[335602634,1724365842712,-151.0,0.0001866,2]
[335602635,1724365842722,-151.0,0.0001866,2]
[335602636,1724365842731,-260.151448,0.0001866,2]
[335602637,1724365842741,-256.00627,0.0001866,2]
[335602638,1724365842752,-256.00627,0.0001866,2]
[335602639,1724365842762,-256.00627,0.0001866,2]
[335602640,1724365842771,-256.00627,0.0001866,2]
[335602642,1724365842780,-256.00627,0.0001866,2]
[335602643,1724365842790,-256.00627,0.0001866,2]
[335602644,1724365842799,-256.00627,0.0001866,2]
[335602645,1724365842808,-256.00627,0.0001866,2]
[335602646,1724365842818,-151.0,0.0001866,2]
[335602647,1724365842828,-151.0,0.0001866,2]
[335602648,1724365842837,-151.0,0.0001866,2]
[335602649,1724365842847,-151.0,0.0001866,2]
[335602650,1724365842857,-151.0,0.0001866,2]
[335602651,1724365842866,-496.906509,0.0001866,2]
[335602652,1724365842875,-496.906509,0.0001866,2]
[335602653,1724365842885,-496.906509,0.0001866,2]
[335602654,1724365842894,-496.906509,0.0001866,2]
[335602655,1724365842904,-496.906509,0.0001866,2]
[335602656,1724365842915,-496.906506,0.0001866,2]
[335602657,1724365842925,-235.570016,0.0001866,2]
[335602659,1724365842937,-235.570016,0.0001866,2]
[335602660,1724365842947,-235.570016,0.0001866,2]
[335602661,1724365842957,-235.570016,0.0001866,2]
[335602662,1724365842966,-235.570016,0.0001866,2]
[335602663,1724365842975,-235.570023,0.0001866,2]
[335602664,1724365842985,-151.0,0.0001866,2]
[335602665,1724365842994,-151.0,0.0001866,2]
[335602666,1724365843004,-151.0,0.0001866,2]
[335602667,1724365843014,-576.027783,0.0001866,2]
[335602668,1724365843023,-576.027783,0.0001866,2]
[335602669,1724365843032,-576.027783,0.0001866,2]
[335602670,1724365843042,-576.027783,0.0001866,2]
[335602671,1724365843052,-576.027783,0.0001866,2]
[335602672,1724365843062,-576.027775,0.0001866,2]
[335602673,1724365843072,-500.0,0.00018673,2]
[335602674,1724365843081,-500.0,0.00018673,2]
[335602675,1724365843090,-14001.21194709,0.00018749,2]
[335602696,1724365844155,-2640.95997503,0.00017059,2]
[335602697,1724365844165,-28609.87626781,0.00018749,2]
[335602698,1724365844175,-742.50283583,0.00018749,2]
[335602699,1724365844184,-2000.0,0.00018759,2]
[335602700,1724365844193,-415.611282,0.00018759,2]
[335602701,1724365844204,-562.715892,0.00018759,2]
[335602702,1724365844213,-203.098501,0.00018759,2]
[335602703,1724365844224,-415.611282,0.00018759,2]
[335602704,1724365844234,-203.098501,0.00018759,2]
[335602705,1724365844243,-1101.564104,0.00018759,2]
[335602706,1724365844252,-1101.564104,0.00018759,2]
[335602707,1724365844261,-367.759949,0.00018759,2]
[335602708,1724365844271,-259.027066,0.00018759,2]
[335602709,1724365844282,-367.759949,0.00018759,2]
[335602710,1724365844292,-259.027066,0.00018759,2]
[335602711,1724365844302,-151.0,0.00018759,2]
[335602712,1724365844312,-256.00627,0.00018759,2]
[335602713,1724365844322,-256.00627,0.00018759,2]
[335602714,1724365844331,-742.5028358,0.00018787,2]
[335602715,1724365844341,-151.0,0.000188,2]
[335602716,1724365844350,-258.591294,0.000188,2]
[335602717,1724365844361,-25.41610992,0.000188,2]
[335602718,1724365844376,-125.58389008,0.000188,2]
[335602719,1724365844387,-258.591294,0.000188,2]
[335602720,1724365844396,-151.0,0.000188,2]
[335602721,1724365844405,-151.0,0.0001881,2]
[335602722,1724365844415,-151.0,0.0001881,2]
[335602723,1724365844424,-151.0,0.0001881,2]
[335602724,1724365844434,-151.0,0.0001881,2]
[335602725,1724365844443,-258.591294,0.0001881,2]
[335602726,1724365844454,-54.90460996,0.0001881,2]
[335602727,1724365844466,-96.09539004,0.0001881,2]
[335602728,1724365844483,-258.591294,0.0001881,2]
[335602729,1724365844493,-151.0,0.0001881,2]
[335602730,1724365844503,-151.0,0.0001881,2]
[335602731,1724365844512,-151.0,0.0001881,2]
[335602732,1724365844522,-415.611282,0.0001881,2]
[335602733,1724365844531,-562.715892,0.0001881,2]
[335602734,1724365844542,-203.098501,0.0001881,2]
[335602735,1724365844554,-415.611282,0.0001881,2]
[335602736,1724365844564,-203.098501,0.0001881,2]
[335602737,1724365844573,-1101.564104,0.0001881,2]
[335602738,1724365844584,-1101.564104,0.0001881,2]
[335602739,1724365844595,-367.759949,0.0001881,2]
[335602740,1724365844605,-259.027066,0.0001881,2]
[335602741,1724365844616,-367.759949,0.0001881,2]
[335602742,1724365844627,-259.027066,0.0001881,2]
[335602743,1724365844638,-151.0,0.0001881,2]
[335602744,1724365844647,-151.0,0.0001881,2]
[335602745,1724365844656,-256.00627,0.0001881,2]
[335602746,1724365844666,-256.00627,0.0001881,2]
[335602747,1724365844676,-742.5028358,0.00018825,2]
[335602748,1724365844685,-151.0,0.00018839,2]
[335602749,1724365844696,-151.0,0.00018839,2]
[335602750,1724365844706,-1877.78507223,0.00018847,2]
[335602751,1724365844715,-415.611282,0.00018848,2]
[335602752,1724365844726,-555.53655327,0.00018848,2]
[335602767,1724365846185,-153.0,0.000177,2]
[335602769,1724365846196,-7.17933873,0.00018848,2]
[335602770,1724365846206,-203.098501,0.00018848,2]
[335602771,1724365846216,-415.611282,0.00018848,2]
[335602772,1724365846226,-203.098501,0.00018848,2]
[335602773,1724365846236,-1101.564104,0.00018848,2]
[335602774,1724365846245,-1101.564104,0.00018848,2]
[335602775,1724365846256,-367.759949,0.00018848,2]
[335602776,1724365846268,-193.00210774,0.00018848,2]
[335602876,1724367032620,-7956.94771954,0.00012999,2]
[335602877,1724367032631,-2221.47647721,0.00014245,3]
[335602878,1724367032642,-185.8372095,0.00014247,2]
[335602879,1724367032653,-300.0,0.00014518,2]
[335602880,1724367032663,-1454.35874248,0.00015,2]
[335602994,1724367043569,-1186.60123255,0.00015,2]
[335602995,1724367043579,-420.0,0.0001597,2]
[335602996,1724367043589,-277.72945572,0.000165,2]
[335602997,1724367043598,-166.66667,0.00016653,2]
[335602998,1724367043608,-7428.8372558,0.00017104,2]
[335602999,1724367043619,-427.0,0.00017567,2]
[335603000,1724367043629,-10345.32363826,0.00017898,2]
[335603001,1724367043638,-5506.11285715,0.00018393,2]
[335603002,1724367043648,-500.0,0.00018521,2]
[335603003,1724367043659,-655.50862171,0.00018725,2]
[335603004,1724367043668,-2298.42101807,0.00018812,2]
[335603005,1724367043680,-10771.97266334,0.00018812,2]
[335603006,1724367043700,-27366.51524599,0.00018812,2]
[335603007,1724367043711,-255.10544123,0.00018813,2]
[335603008,1724367043720,-4461.27157888,0.00018816,2]
[335603019,1724367046417,-9143.25,0.00018816,2]
[335603183,1724368240993,-369.070803,0.00014247,2]
[335603184,1724368241004,-277.72945572,0.00017267,2]
[335603185,1724368241015,-277.72945572,0.00017267,2]
[335603187,1724368241026,-953.69627248,0.00017825,2]
[335603190,1724368241038,-10345.32363826,0.00017898,2]
[335603192,1724368241047,-5623.26419453,0.00018488,2]
[335603194,1724368241057,-500.0,0.00018521,2]
[335603196,1724368241068,-500.0,0.00018586,2]
[335603198,1724368241080,-700.52,0.00018586,2]
[335603200,1724368241091,-552.12,0.00018586,2]
[335603203,1724368241102,-500.0,0.00018586,2]
[335603205,1724368241113,-500.0,0.00018586,2]
[335603207,1724368241123,-512.66479152,0.00018586,2]
[335603209,1724368241133,-1225.89,0.00018586,2]
[335603211,1724368241143,-714.52,0.00018586,2]
[335603213,1724368241153,-500.0,0.00018586,2]
[335603215,1724368241164,-500.0,0.00018586,2]
[335603217,1724368241174,-500.0,0.00018586,2]
[335603220,1724368241185,-500.0,0.00018586,2]
[335603222,1724368241198,-1000.04,0.00018586,2]
[335603224,1724368241208,-2109.95,0.00018586,2]
[335603226,1724368241219,-915.61,0.00018586,2]
[335603229,1724368241230,-500.0,0.00018586,2]
[335603231,1724368241241,-524.40689736,0.00018736,2]
[335603233,1724368241251,-1480.35675751,0.000188,2]
[335603261,1724368244030,-397.42831472,0.000188,2]
[335603262,1724368244040,-255.78727015,0.00018814,2]
[335603263,1724368244050,-533.27910041,0.00018814,2]
[335603264,1724368244059,-679.15,0.00018814,2]
[335603265,1724368244069,-500.0,0.00018814,2]
[335603266,1724368244079,-294.08435315,0.00018814,2]
[335603267,1724368244091,-1478.04564685,0.00018814,2]
[335603268,1724368244102,-528.22,0.00018814,2]
[335603269,1724368244114,-500.0,0.00018814,2]
[335603270,1724368244123,-5217.49,0.00018814,2]
[335603271,1724368244132,-500.0,0.00018814,2]
[335603272,1724368244143,-787.41,0.00018814,2]
[335603273,1724368244154,-500.0,0.00018814,2]
[335603274,1724368244165,-884.67,0.00018814,2]
[335603275,1724368244176,-376.13701649,0.00018814,2]
[335603441,1724369321532,1209.94184448,0.00025,120]
[335603505,1724369431856,-350.617262,0.00014247,2]
[335603506,1724369431866,-142.07528594,0.00018521,2]
[335603533,1724369437802,-357.92471406,0.00018521,2]
[335603534,1724369437814,-622.94540694,0.00018604,2]
[335603535,1724369437824,-5623.26419453,0.00018612,2]
[335603536,1724369437834,-1909.34407875,0.00018624,2]
[335603537,1724369437843,-622.94540692,0.00018632,2]
[335603538,1724369437853,-622.94540692,0.00018659,2]
[335603539,1724369437863,-622.94540692,0.00018687,2]
[335603540,1724369437874,-500.0,0.00018699,2]
[335603541,1724369437885,-500.0,0.00018699,2]
[335603542,1724369437895,-500.0,0.00018699,2]
[335603543,1724369437907,-55.86227415,0.00018699,2]
[335603544,1724369437921,-444.13772585,0.00018699,2]
[335603545,1724369437932,-500.0,0.00018699,2]
[335603546,1724369437941,-138.24100386,0.00018699,2]
[335603588,1724369443190,-5506.11285715,0.00018562,2]
[335603589,1724369443200,-30.14367547,0.00018699,2]
[335603590,1724369443209,-500.0,0.00018699,2]
[335603591,1724369443219,-500.0,0.00018699,2]
[335603593,1724369443228,-500.0,0.00018699,2]
[335603595,1724369443237,-500.0,0.00018699,2]
[335603596,1724369443246,-500.0,0.00018699,2]
[335603597,1724369443255,-500.0,0.00018699,2]
[335603598,1724369443264,-500.0,0.00018699,2]
[335603600,1724369443273,-257.67048387,0.00018699,2]
[335603611,1724369445806,-242.32951613,0.00018699,2]
[335603612,1724369445815,-44.16222198,0.00018699,2]
[335603631,1724369911316,236.65,0.00027,120]
[335603806,1724370643198,-333.086398,0.00014247,2]
[335603807,1724370643210,-19315.49884402,0.00017199,2]
[335603808,1724370643220,-613.6769876,0.00017435,2]
[335603809,1724370643230,-1847.69582926,0.00018446,9]
[335603810,1724370643240,-5623.26419453,0.00018446,2]
[335603811,1724370643250,-3291.60171115,0.00018488,2]
[335603812,1724370643259,-500.0,0.00018521,2]
[335603813,1724370643269,-155.73635173,0.00018524,2]
[335603814,1724370643279,-155.73635173,0.00018549,2]
[335603815,1724370643290,-290.93966491,0.00018573,2]
[335603816,1724370643300,-155.73635173,0.00018574,2]
[335603817,1724370643311,-8349.98053724,0.00018578,2]
[335603823,1724370645921,-17374.87520924,0.00018578,2]
[335603824,1724370646030,-18589.57185062,0.00018578,2]
[335603825,1724370646042,-30618.15068505,0.00018579,2]
[335603928,1724371838047,-779.97165007,0.00012898,2]
[335603929,1724371838059,-316.432078,0.00014247,2]
[335603930,1724371838069,-1111.3564694,0.00018105,2]
[335603931,1724371838080,-10345.32363826,0.00018135,2]
[335603932,1724371838091,-300.0,0.00018159,2]
[335603933,1724371838102,-2980.43136153,0.00018306,2]
[335603934,1724371838114,-5623.26419453,0.00018325,2]
[335603935,1724371838126,-306.34963866,0.00018386,2]
[335603936,1724371838136,-500.0,0.00018386,2]
[335603937,1724371838145,-500.0,0.00018386,2]
[335603938,1724371838157,-5217.49,0.00018386,2]
[335603939,1724371838168,-698.21,0.00018386,2]
[335603940,1724371838179,-787.41,0.00018386,2]
[335603941,1724371838189,-4066.7,0.00018386,2]
[335603942,1724371838200,-900.26,0.00018386,2]
[335603943,1724371838211,-500.0,0.00018386,2]
[335603944,1724371838221,-500.0,0.00018386,2]
[335603945,1724371838231,-1583.96,0.00018386,2]
[335603946,1724371838243,-1583.96,0.00018386,2]
[335603947,1724371838254,-294.20802565,0.00018386,2]
[335603948,1724371838264,-1995.75742364,0.00018387,2]
[335603949,1724371838276,-71630.54991092,0.00018387,2]
[335603950,1724371838287,-306.34963864,0.00018406,2]
[335603951,1724371838297,-306.34963864,0.00018426,2]
[335603952,1724371838308,-306.34963864,0.00018446,2]
[335603953,1724371838318,-306.34963864,0.00018466,2]
[335603954,1724371838328,-650.85,0.00018476,2]
[335603955,1724371838338,-610.53,0.00018476,2]
[335603956,1724371838347,-1698.29,0.00018476,2]
[335603957,1724371838358,-528.22,0.00018476,2]
[335603958,1724371838367,-742.8,0.00018476,2]
[335603959,1724371838377,-500.0,0.00018476,2]
[335603960,1724371838387,-151.0,0.00018476,2]
[335603961,1724371838398,-151.0,0.00018476,2]
[335603962,1724371838410,-151.0,0.00018476,2]
[335603963,1724371838419,-884.67,0.00018476,2]
[335603964,1724371838429,-500.0,0.00018476,2]
[335603965,1724371838442,-749.5,0.00018476,2]
[335603966,1724371838453,-170.671518,0.00018476,2]
[335603967,1724371838463,-2809.84,0.00018476,2]
[335603968,1724371838474,-128095.059281,0.00018476,2]
[335603969,1724371838484,-500.0,0.00018476,2]
[335603970,1724371838494,-438.33253546,0.00018476,2]
[335603971,1724371838505,-500.0,0.00018476,2]
[335603972,1724371838515,-172.88401243,0.00018476,2]
[335603973,1724371838525,-500.0,0.00018476,2]
[335603974,1724371838535,-500.0,0.00018476,2]
[335603975,1724371838545,-308.49551977,0.00018476,2]
[335603976,1724371838555,-500.0,0.00018476,2]
[335603977,1724371838565,-500.0,0.00018476,2]
[335603978,1724371838574,-500.0,0.00018476,2]
[335603979,1724371838584,-500.0,0.00018476,2]
[335603980,1724371838594,-500.0,0.00018476,2]
[335603981,1724371838604,-500.0,0.00018476,2]
[335603982,1724371838613,-500.0,0.00018476,2]
[335603983,1724371838623,-500.0,0.00018476,2]
[335603984,1724371838633,-500.0,0.00018476,2]
[335603985,1724371838642,-500.0,0.00018476,2]
[335603986,1724371838653,-151.0,0.00018477,2]
[335603987,1724371838666,-151.0,0.00018477,2]
[335603988,1724371838676,-151.0,0.00018477,2]
[335603989,1724371838685,-170.671518,0.00018477,2]
[335603990,1724371838695,-170793.412375,0.00018477,2]
[335603991,1724371838705,-151.0,0.00018478,2]
[335603992,1724371838714,-151.0,0.00018478,2]
[335603993,1724371838724,-151.0,0.00018478,2]
[335603994,1724371838733,-229.19378,0.00018478,2]
[335603995,1724371838743,-229.19378,0.00018478,2]
[335603996,1724371838752,-238.262544,0.00018478,2]
[335603997,1724371838763,-238.262544,0.00018478,2]
[335603998,1724371838772,-151.0,0.00018478,2]
[335603999,1724371838781,-166.767668,0.00018485,2]
[335604000,1724371838792,-151.0,0.00018485,2]
[335604001,1724371838802,-151.0,0.00018485,2]
[335604002,1724371838812,-170.671518,0.00018485,2]
[335604003,1724371838821,-7934.68889558,0.00018486,9]
[335604004,1724371838831,-500.0,0.00018486,2]
[335604005,1724371838841,-500.0,0.00018486,2]
[335604006,1724371838850,-500.0,0.00018486,2]
[335604007,1724371838860,-500.0,0.00018486,2]
[335604008,1724371838869,-500.0,0.00018486,2]
[335604009,1724371838880,-500.0,0.00018486,2]
[335604010,1724371838890,-500.0,0.00018486,2]
[335604011,1724371838901,-850.0,0.00018486,2]
[335604012,1724371838914,-500.0,0.00018486,2]
[335604013,1724371838927,-500.0,0.00018486,2]
[335604014,1724371838938,-500.0,0.00018486,2]
[335604015,1724371838949,-500.0,0.00018486,2]
[335604016,1724371838960,-500.0,0.00018486,2]
[335604017,1724371838971,-585.28,0.00018486,2]
[335604018,1724371838984,-500.0,0.00018486,2]
[335604019,1724371838996,-200.0,0.00018486,2]
[335604020,1724371839008,-500.0,0.00018486,2]
[335604021,1724371839017,-500.0,0.00018486,2]
[335604022,1724371839028,-500.0,0.00018486,2]
[335604023,1724371839039,-500.0,0.00018486,2]
[335604024,1724371839051,-500.0,0.00018486,2]
[335604025,1724371839061,-500.0,0.00018486,2]
[335604026,1724371839073,-450.02647187,0.00018486,2]
[335604027,1724371839085,-500.0,0.00018486,2]
[335604028,1724371839096,-500.0,0.00018486,2]
[335604029,1724371839107,-874.98,0.00018486,2]
[335604030,1724371839118,-500.0,0.00018486,2]
[335604031,1724371839128,-503.94550365,0.00018486,2]
[335604032,1724371839138,-500.0,0.00018486,2]
[335604033,1724371839148,-500.0,0.00018486,2]
[335604034,1724371839158,-500.0,0.00018486,2]
[335604035,1724371839167,-500.0,0.00018486,2]
[335604036,1724371839177,-546.32364601,0.00018486,2]
[335604037,1724371839187,-500.0,0.00018486,2]
[335604038,1724371839197,-824.38,0.00018486,2]
[335604039,1724371839207,-575.98971542,0.00018486,2]
[335604040,1724371839216,-500.0,0.00018486,2]
[335604041,1724371839225,-500.0,0.00018486,2]
[335604042,1724371839235,-500.0,0.00018486,2]
[335604043,1724371839244,-500.0,0.00018486,2]
[335604044,1724371839253,-547.24,0.00018486,2]
[335604045,1724371839263,-500.0,0.00018486,2]
[335604046,1724371839273,-500.0,0.00018486,2]
[335604047,1724371839282,-500.0,0.00018486,2]
[335604048,1724371839292,-500.0,0.00018486,2]
[335604049,1724371839301,-151.737301,0.00018486,2]
[335604050,1724371839310,-500.0,0.00018486,2]
[335604051,1724371839320,-606.814106,0.00018486,2]
[335604052,1724371839330,-606.814106,0.00018486,2]
[335604053,1724371839339,-500.0,0.00018486,2]
[335604054,1724371839348,-500.0,0.00018486,2]
[335604055,1724371839358,-606.814106,0.00018486,2]
[335604056,1724371839367,-774.89,0.00018486,2]
[335604057,1724371839377,-606.814106,0.00018486,2]
[335604058,1724371839387,-500.0,0.00018486,2]
[335604059,1724371839396,-500.0,0.00018486,2]
[335604060,1724371839407,-500.0,0.00018486,2]
[335604061,1724371839417,-500.0,0.00018486,2]
[335604062,1724371839427,-500.0,0.00018486,2]
[335604063,1724371839436,-500.0,0.00018486,2]
[335604064,1724371839446,-500.0,0.00018486,2]
[335604065,1724371839455,-358.11292,0.00018486,2]
[335604066,1724371839464,-358.11292,0.00018486,2]
[335604067,1724371839474,-715.488689,0.00018486,2]
[335604068,1724371839484,-715.488689,0.00018486,2]
[335604069,1724371839494,-358.11292,0.00018486,2]
[335604070,1724371839504,-358.11292,0.00018486,2]
[335604071,1724371839514,-151.0,0.00018486,2]
[335604072,1724371839524,-500.0,0.00018486,2]
[335604073,1724371839534,-151.0,0.00018486,2]
[335604074,1724371839543,-715.488689,0.00018486,2]
[335604075,1724371839553,-715.488689,0.00018486,2]
[335604076,1724371839563,-260.151448,0.00018486,2]
[335604077,1724371839572,-500.0,0.00018486,2]
[335604078,1724371839582,-500.0,0.00018486,2]
[335604079,1724371839591,-500.0,0.00018486,2]
[335604080,1724371839601,-500.0,0.00018486,2]
[335604081,1724371839610,-500.0,0.00018486,2]
[335604082,1724371839620,-500.0,0.00018486,2]
[335604083,1724371839630,-500.0,0.00018486,2]
[335604084,1724371839639,-500.0,0.00018486,2]
[335604085,1724371839649,-500.0,0.00018486,2]
[335604086,1724371839659,-500.0,0.00018486,2]
[335604087,1724371839669,-500.0,0.00018486,2]
[335604088,1724371839678,-549.979566,0.00018486,2]
[335604089,1724371839688,-549.979566,0.00018486,2]
[335604090,1724371839697,-549.979566,0.00018486,2]
[335604091,1724371839707,-500.0,0.00018486,2]
[335604092,1724371839717,-549.979566,0.00018486,2]
[335604093,1724371839726,-500.0,0.00018486,2]
[335604094,1724371839735,-549.979566,0.00018486,2]
[335604095,1724371839745,-549.979566,0.00018486,2]
[335604096,1724371839754,-549.979566,0.00018486,2]
[335604097,1724371839764,-549.979566,0.00018486,2]
[335604098,1724371839773,-500.0,0.00018486,2]
[335604099,1724371839782,-500.0,0.00018486,2]
[335604100,1724371839792,-500.0,0.00018486,2]
[335604101,1724371839801,-500.0,0.00018486,2]
[335604102,1724371839811,-500.0,0.00018486,2]
[335604104,1724371839820,-3023.39,0.00018486,2]
[335604105,1724371839830,-871.08,0.00018486,2]
[335604106,1724371839839,-500.0,0.00018486,2]
[335604107,1724371839849,-500.0,0.00018486,2]
[335604108,1724371839859,-1256.24,0.00018486,2]
[335604109,1724371839868,-2165.85,0.00018486,2]
[335604110,1724371839877,-500.0,0.00018486,2]
[335604111,1724371839887,-500.0,0.00018486,2]
[335604112,1724371839896,-500.0,0.00018486,2]
[335604113,1724371839905,-500.0,0.00018486,2]
[335604114,1724371839915,-500.0,0.00018486,2]
[335604115,1724371839924,-3910.5,0.00018486,2]
[335604116,1724371839934,-500.0,0.00018486,2]
[335604117,1724371839943,-151.0,0.00018486,2]
[335604118,1724371839953,-151.0,0.00018486,2]
[335604119,1724371839962,-151.0,0.00018486,2]
[335604120,1724371839972,-151.0,0.00018486,2]
[335604121,1724371839982,-151.0,0.00018486,2]
[335604122,1724371839991,-151.0,0.00018486,2]
[335604123,1724371840006,-151.0,0.00018486,2]
[335604124,1724371840017,-500.0,0.00018486,2]
[335604125,1724371840028,-151.0,0.00018486,2]
[335604126,1724371840038,-500.0,0.00018486,2]
[335604127,1724371840047,-1780.77,0.00018486,2]
[335604128,1724371840056,-500.0,0.00018486,2]
[335604129,1724371840066,-500.0,0.00018486,2]
[335604130,1724371840075,-662.45,0.00018486,2]
[335604131,1724371840084,-500.0,0.00018486,2]
[335604132,1724371840094,-320.51731545,0.00018486,2]
[335604133,1724371840103,-991.851939,0.00018486,2]
[335604134,1724371840112,-500.0,0.00018486,2]
[335604135,1724371840122,-991.851939,0.00018486,2]
[335604136,1724371840132,-991.851939,0.00018486,2]
[335604137,1724371840141,-991.851939,0.00018486,2]
[335604138,1724371840150,-582.74,0.00018486,2]
[335604139,1724371840161,-151.0,0.00018486,2]
[335604140,1724371840170,-151.0,0.00018486,2]
[335604141,1724371840182,-151.0,0.00018486,2]
[335604142,1724371840192,-151.0,0.00018486,2]
[335604143,1724371840202,-151.0,0.00018486,2]
[335604144,1724371840213,-151.0,0.00018486,2]
[335604145,1724371840223,-991.851939,0.00018486,2]
[335604146,1724371840233,-991.851939,0.00018486,2]
[335604147,1724371840242,-991.851939,0.00018486,2]
[335604148,1724371840252,-991.851939,0.00018486,2]
[335604149,1724371840261,-500.0,0.00018486,2]
[335604150,1724371840271,-500.0,0.00018486,2]
[335604151,1724371840281,-500.0,0.00018486,2]
[335604152,1724371840292,-761.801437,0.00018486,2]
[335604153,1724371840301,-761.801437,0.00018486,2]
[335604155,1724371840311,-761.801437,0.00018486,2]
[335604156,1724371840321,-761.801437,0.00018486,2]
[335604157,1724371840331,-500.0,0.00018486,2]
[335604158,1724371840340,-1367.58,0.00018486,2]
[335604159,1724371840349,-761.801437,0.00018486,2]
[335604160,1724371840359,-500.0,0.00018486,2]
[335604161,1724371840368,-761.801437,0.00018486,2]
[335604162,1724371840378,-761.801437,0.00018486,2]
[335604163,1724371840389,-490.25187308,0.00018486,2]
[335604164,1724371840399,-761.801437,0.00018486,2]
[335604165,1724371840415,-353.26959,0.00018486,2]
[335604166,1724371840426,-353.26959,0.00018486,2]
[335604167,1724371840436,-353.26959,0.00018486,2]
[335604168,1724371840492,-353.26959,0.00018486,2]
[335604169,1724371840502,-353.26959,0.00018486,2]
[335604170,1724371840513,-353.26959,0.00018486,2]
[335604171,1724371840522,-353.26959,0.00018486,2]
[335604172,1724371840532,-353.26959,0.00018486,2]
[335604173,1724371840541,-353.26959,0.00018486,2]
[335604174,1724371840551,-353.26959,0.00018486,2]
[335604175,1724371840562,-1572.43,0.00018486,2]
[335604176,1724371840574,-353.26959,0.00018486,2]
[335604177,1724371840585,-353.26959,0.00018486,2]